[Event "Titled Tuesday Blitz February 21 Early 2023"]
[White "Danielyan, Vahe"]
[Black "Van Foreest, Jorden"]
[WhiteFideId "13304828"]
[BlackFideId "1039784"]
[WhiteElo "2346"]
[BlackElo "2689"]
[Result "0-1"]
[Round "04"]
[TimeControl "180+2"]
[Date "2023.02.21"]
[WhiteClock "0:00:03"]
[BlackClock "0:00:10"]

1. d4 {[%clk 0:02:59]}  Nf6 {[%clk 0:02:54]} 2. c4 {[%clk 0:02:59]}  c6 {[%clk 0:02:54]} 3. Nf3 {[%clk 0:02:55]}  b5 {[%clk 0:02:54]} 4. Nbd2 {[%clk 0:02:51]}  Ba6 {[%clk 0:02:40]} 5. e3 {[%clk 0:02:51]}  bxc4 {[%clk 0:02:40]} 6. Bxc4 {[%clk 0:02:50]}  Bxc4 {[%clk 0:02:40]} 7. Nxc4 {[%clk 0:02:51]}  e6 {[%clk 0:02:39]} 8. O-O {[%clk 0:02:51]}  Be7 {[%clk 0:02:39]} 9. b3 {[%clk 0:02:49]}  O-O {[%clk 0:02:39]} 10. Bb2 {[%clk 0:02:49]}  d5 {[%clk 0:02:32]} 11. Nce5 {[%clk 0:02:49]}  Nfd7 {[%clk 0:02:33]} 12. Rc1 {[%clk 0:02:47]}  Qb6 {[%clk 0:02:26]} 13. Rxc6 {[%clk 0:02:40]}  Nxc6 {[%clk 0:02:19]} 14. Nxd7 {[%clk 0:02:40]}  Qa6 {[%clk 0:02:15]} 15. Nxf8 {[%clk 0:02:38]}  Rxf8 {[%clk 0:02:04]} 16. a3 {[%clk 0:02:30]}  Na5 {[%clk 0:01:55]} 17. Nd2 {[%clk 0:02:26]}  Rc8 {[%clk 0:01:53]} 18. b4 {[%clk 0:02:25]}  Nc4 {[%clk 0:01:53]} 19. Nxc4 {[%clk 0:02:20]}  Rxc4 {[%clk 0:01:48]} 20. g3 {[%clk 0:01:36]}  Kf8 {[%clk 0:01:44]} 21. Qb3 {[%clk 0:01:26]}  Qc8 {[%clk 0:01:34]} 22. b5 {[%clk 0:01:18]}  Rc2 {[%clk 0:01:30]} 23. b6 {[%clk 0:01:02]}  axb6 {[%clk 0:01:30]} 24. Qxb6 {[%clk 0:01:03]}  Rc6 {[%clk 0:01:10]} 25. Qb5 {[%clk 0:01:00]}  Rc7 {[%clk 0:01:10]} 26. a4 {[%clk 0:00:54]}  Rb7 {[%clk 0:01:10]} 27. Rc1 {[%clk 0:00:41]}  Qb8 {[%clk 0:01:06]} 28. Qa6 {[%clk 0:00:39]}  g5 {[%clk 0:01:01]} 29. a5 {[%clk 0:00:24]}  Kg7 {[%clk 0:01:01]} 30. Bc3 {[%clk 0:00:24]}  Ba3 {[%clk 0:00:56]} 31. Rf1 {[%clk 0:00:19]}  Rb3 {[%clk 0:00:55]} 32. Bd2 {[%clk 0:00:16]}  Rb2 {[%clk 0:00:56]} 33. Bc1 {[%clk 0:00:14]}  Ra2 {[%clk 0:00:53]} 34. Bxa3 {[%clk 0:00:12]}  Rxa3 {[%clk 0:00:54]} 35. Rc1 {[%clk 0:00:07]}  Qb2 {[%clk 0:00:51]} 36. Qc6 {[%clk 0:00:03]}  Ra2 {[%clk 0:00:50]} 37. Rf1 {[%clk 0:00:03]}  Rxa5 {[%clk 0:00:43]} 38. Qc7 {[%clk 0:00:03]}  Ra2 {[%clk 0:00:36]} 39. Qe5+ {[%clk 0:00:04]}  Kg6 {[%clk 0:00:36]} 40. Qh8 {[%clk 0:00:04]}  Qe2 {[%clk 0:00:15]} 41. Qg8+ {[%clk 0:00:03]}  Kf6 {[%clk 0:00:16]} 42. Qxh7 {[%clk 0:00:02]}  Qg4 {[%clk 0:00:14]} 43. Qh6+ {[%clk 0:00:02]}  Ke7 {[%clk 0:00:13]} 44. Rc1 {[%clk 0:00:01]}  Qf5 {[%clk 0:00:13]} 45. Rf1 {[%clk 0:00:01]}  Rc2 {[%clk 0:00:10]} 46. h4 {[%clk 0:00:02]}  gxh4 {[%clk 0:00:10]} 47. Qxh4+ {[%clk 0:00:02]}  Kd7 {[%clk 0:00:10]} 48. Ra1 {[%clk 0:00:03]}  Qxf2+ {[%clk 0:00:09]} 49. Kh1 {[%clk 0:00:03]}  Qg2# {[%clk 0:00:10]} 0-1


[Site "https://www.chess.com"]

[Event "Titled Tuesday Blitz February 21 Early 2023"]
[White "gshwbedhkhd"]
[Black "Shimanov, Aleksandr"]
[BlackFideId "4198603"]
[WhiteElo "2556"]
[BlackElo "2581"]
[Result "0-1"]
[Round "04"]
[TimeControl "180+2"]
[Date "2023.02.21"]
[WhiteClock "0:00:02"]
[BlackClock "0:00:28"]

1. e4 {[%clk 0:03:00]}  e6 {[%clk 0:02:52]} 2. d4 {[%clk 0:03:00]}  d5 {[%clk 0:02:52]} 3. Bd3 {[%clk 0:03:00]}  c5 {[%clk 0:02:46]} 4. exd5 {[%clk 0:02:58]}  Qxd5 {[%clk 0:02:36]} 5. Nc3 {[%clk 0:02:52]}  Qd8 {[%clk 0:02:20]} 6. Nf3 {[%clk 0:02:46]}  cxd4 {[%clk 0:02:19]} 7. Nxd4 {[%clk 0:02:46]}  Nf6 {[%clk 0:02:14]} 8. O-O {[%clk 0:02:46]}  Bc5 {[%clk 0:02:13]} 9. Nf3 {[%clk 0:02:40]}  O-O {[%clk 0:02:12]} 10. Bg5 {[%clk 0:02:39]}  Be7 {[%clk 0:02:10]} 11. Qe2 {[%clk 0:02:39]}  Nbd7 {[%clk 0:02:09]} 12. Rad1 {[%clk 0:02:39]}  a6 {[%clk 0:01:53]} 13. Ne4 {[%clk 0:02:24]}  Qc7 {[%clk 0:01:52]} 14. c3 {[%clk 0:02:22]}  b6 {[%clk 0:01:35]} 15. Bb1 {[%clk 0:01:01]}  Bb7 {[%clk 0:01:34]} 16. Rxd7 {[%clk 0:00:19]}  Qxd7 {[%clk 0:01:34]} 17. Rd1 {[%clk 0:00:17]}  Qc7 {[%clk 0:01:18]} 18. Nxf6+ {[%clk 0:00:15]}  Bxf6 {[%clk 0:01:11]} 19. Qc2 {[%clk 0:00:13]}  Rfd8 {[%clk 0:01:10]} 20. Qxh7+ {[%clk 0:00:11]}  Kf8 {[%clk 0:01:11]} 21. Re1 {[%clk 0:00:10]}  Bxf3 {[%clk 0:01:10]} 22. Bxf6 {[%clk 0:00:10]}  gxf6 {[%clk 0:01:10]} 23. gxf3 {[%clk 0:00:06]}  Ke7 {[%clk 0:01:08]} 24. Bf5 {[%clk 0:00:04]}  Rd6 {[%clk 0:01:00]} 25. Bh3 {[%clk 0:00:02]}  Rad8 {[%clk 0:00:58]} 26. Kg2 {[%clk 0:00:03]}  Qc5 {[%clk 0:00:57]} 27. Re4 {[%clk 0:00:03]}  f5 {[%clk 0:00:39]} 28. Bxf5 {[%clk 0:00:02]}  Qd5 {[%clk 0:00:31]} 29. Bg4 {[%clk 0:00:02]}  Qg5 {[%clk 0:00:30]} 30. h4 {[%clk 0:00:01]}  Qf6 {[%clk 0:00:30]} 31. Qh5 {[%clk 0:00:01]}  Rh8 {[%clk 0:00:30]} 32. Qg5 {[%clk 0:00:02]}  Qxg5 {[%clk 0:00:29]} 33. hxg5 {[%clk 0:00:03]}  Rg8 {[%clk 0:00:26]} 34. f4 {[%clk 0:00:02]}  Rd2 {[%clk 0:00:26]} 35. Kf3 {[%clk 0:00:02]}  Rxb2 {[%clk 0:00:26]} 36. f5 {[%clk 0:00:02]}  Rxg5 {[%clk 0:00:26]} 37. fxe6 {[%clk 0:00:02]}  f5 {[%clk 0:00:27]} 38. Kf4 {[%clk 0:00:01]}  Rxg4+ {[%clk 0:00:26]} 39. Kxf5 {[%clk 0:00:02]}  Rxe4 {[%clk 0:00:27]} 40. Kxe4 {[%clk 0:00:02]}  Kxe6 {[%clk 0:00:28]} 0-1


[Site "https://www.chess.com"]

[Event "Titled Tuesday Blitz February 21 Early 2023"]
[White "Zhigalko, Sergei"]
[Black "Fisher_TheGalactic"]
[WhiteFideId "13502956"]
[WhiteElo "2572"]
[BlackElo "2535"]
[Result "1-0"]
[Round "04"]
[TimeControl "180+2"]
[Date "2023.02.21"]
[WhiteClock "0:00:32"]
[BlackClock "0:00:03"]

1. e4 {[%clk 0:03:00]}  e6 {[%clk 0:02:59]} 2. d4 {[%clk 0:03:00]}  d5 {[%clk 0:02:58]} 3. e5 {[%clk 0:03:01]}  c5 {[%clk 0:02:58]} 4. c3 {[%clk 0:03:00]}  Qb6 {[%clk 0:02:52]} 5. Nf3 {[%clk 0:02:59]}  Nc6 {[%clk 0:02:52]} 6. Bd3 {[%clk 0:02:57]}  cxd4 {[%clk 0:02:51]} 7. O-O {[%clk 0:02:56]}  Bd7 {[%clk 0:02:42]} 8. Re1 {[%clk 0:02:43]}  h6 {[%clk 0:02:32]} 9. h4 {[%clk 0:02:41]}  dxc3 {[%clk 0:02:24]} 10. Nxc3 {[%clk 0:02:39]}  Bb4 {[%clk 0:02:24]} 11. Be3 {[%clk 0:02:28]}  d4 {[%clk 0:02:13]} 12. Nxd4 {[%clk 0:02:28]}  Nxd4 {[%clk 0:02:14]} 13. Qg4 {[%clk 0:02:25]}  Ne7 {[%clk 0:01:21]} 14. Bxd4 {[%clk 0:02:19]}  Bc5 {[%clk 0:01:20]} 15. Bxc5 {[%clk 0:01:55]}  Qxc5 {[%clk 0:01:20]} 16. Qxg7 {[%clk 0:01:53]}  Rg8 {[%clk 0:01:19]} 17. Qxh6 {[%clk 0:01:53]}  Bc6 {[%clk 0:00:47]} 18. Ne4 {[%clk 0:01:44]}  Bxe4 {[%clk 0:00:45]} 19. Bxe4 {[%clk 0:01:44]}  Qb4 {[%clk 0:00:24]} 20. h5 {[%clk 0:01:19]}  O-O-O {[%clk 0:00:19]} 21. a3 {[%clk 0:01:12]}  Qb6 {[%clk 0:00:09]} 22. Qe3 {[%clk 0:01:10]}  Qxe3 {[%clk 0:00:04]} 23. Rxe3 {[%clk 0:01:10]}  Rd2 {[%clk 0:00:04]} 24. h6 {[%clk 0:00:56]}  Rh8 {[%clk 0:00:04]} 25. h7 {[%clk 0:00:43]}  Rxb2 {[%clk 0:00:04]} 26. Rc1+ {[%clk 0:00:41]}  Kb8 {[%clk 0:00:03]} 27. Rf3 {[%clk 0:00:32]} 1-0


[Site "https://www.chess.com"]

[Event "Titled Tuesday Blitz February 21 Early 2023"]
[White "Sanal, Vahap"]
[Black "Principe, Gerson"]
[WhiteFideId "6300545"]
[BlackFideId "3804550"]
[WhiteElo "2600"]
[BlackElo "2226"]
[Result "1-0"]
[Round "04"]
[TimeControl "180+2"]
[Date "2023.02.21"]
[WhiteClock "0:00:07"]
[BlackClock "0:00:02"]

1. Nf3 {[%clk 0:03:00]}  Nf6 {[%clk 0:02:59]} 2. g3 {[%clk 0:03:00]}  b6 {[%clk 0:02:58]} 3. Bg2 {[%clk 0:03:00]}  Bb7 {[%clk 0:02:59]} 4. O-O {[%clk 0:03:00]}  e6 {[%clk 0:02:58]} 5. c4 {[%clk 0:03:01]}  Be7 {[%clk 0:02:57]} 6. b3 {[%clk 0:03:01]}  O-O {[%clk 0:02:57]} 7. Bb2 {[%clk 0:03:02]}  d5 {[%clk 0:02:57]} 8. e3 {[%clk 0:03:01]}  Nbd7 {[%clk 0:02:57]} 9. Nc3 {[%clk 0:03:00]}  c5 {[%clk 0:02:58]} 10. Qe2 {[%clk 0:02:57]}  dxc4 {[%clk 0:02:42]} 11. bxc4 {[%clk 0:02:57]}  Rc8 {[%clk 0:02:42]} 12. d3 {[%clk 0:02:57]}  Qc7 {[%clk 0:02:42]} 13. Ne1 {[%clk 0:02:57]}  Rfd8 {[%clk 0:02:41]} 14. f4 {[%clk 0:02:56]}  Bxg2 {[%clk 0:02:40]} 15. Nxg2 {[%clk 0:02:51]}  Nb8 {[%clk 0:02:38]} 16. g4 {[%clk 0:02:50]}  Nc6 {[%clk 0:02:31]} 17. g5 {[%clk 0:02:46]}  Nd7 {[%clk 0:02:28]} 18. Ne4 {[%clk 0:02:35]}  Nf8 {[%clk 0:02:00]} 19. Rf3 {[%clk 0:02:21]}  Qd7 {[%clk 0:01:57]} 20. Rd1 {[%clk 0:02:17]}  Nb4 {[%clk 0:01:56]} 21. Nf6+ {[%clk 0:02:03]}  Bxf6 {[%clk 0:01:53]} 22. gxf6 {[%clk 0:02:04]}  g6 {[%clk 0:01:53]} 23. Rg3 {[%clk 0:01:48]}  Nxd3 {[%clk 0:01:33]} 24. Qf1 {[%clk 0:00:49]}  Nxb2 {[%clk 0:01:08]} 25. Rxd7 {[%clk 0:00:48]}  Rxd7 {[%clk 0:01:09]} 26. Ne1 {[%clk 0:00:44]}  Rd1 {[%clk 0:01:07]} 27. Qe2 {[%clk 0:00:19]}  Rcd8 {[%clk 0:01:04]} 28. Rg2 {[%clk 0:00:13]}  Nxc4 {[%clk 0:00:58]} 29. Qxc4 {[%clk 0:00:11]}  Rxe1+ {[%clk 0:00:55]} 30. Kf2 {[%clk 0:00:12]}  Red1 {[%clk 0:00:44]} 31. Kf3 {[%clk 0:00:11]}  Nd7 {[%clk 0:00:36]} 32. Qa4 {[%clk 0:00:05]}  Nxf6 {[%clk 0:00:34]} 33. Qxa7 {[%clk 0:00:05]}  R8d6 {[%clk 0:00:27]} 34. Rb2 {[%clk 0:00:04]}  Rf1+ {[%clk 0:00:16]} 35. Kg2 {[%clk 0:00:03]}  Rdd1 {[%clk 0:00:16]} 36. Qb8+ {[%clk 0:00:02]}  Kg7 {[%clk 0:00:16]} 37. Qe5 {[%clk 0:00:02]}  Rg1+ {[%clk 0:00:16]} 38. Kf2 {[%clk 0:00:01]}  Rgf1+ {[%clk 0:00:15]} 39. Ke2 {[%clk 0:00:01]}  Rfe1+ {[%clk 0:00:14]} 40. Kf3 {[%clk 0:00:01]}  h5 {[%clk 0:00:13]} 41. h4 {[%clk 0:00:01]}  Rf1+ {[%clk 0:00:13]} 42. Rf2 {[%clk 0:00:02]}  Rg1 {[%clk 0:00:13]} 43. Qb2 {[%clk 0:00:01]}  Rh1 {[%clk 0:00:09]} 44. Qe5 {[%clk 0:00:02]}  Rh3+ {[%clk 0:00:07]} 45. Ke2 {[%clk 0:00:02]}  Rhh1 {[%clk 0:00:08]} 46. Rg2 {[%clk 0:00:02]}  Rhe1+ {[%clk 0:00:08]} 47. Kf3 {[%clk 0:00:03]}  Rf1+ {[%clk 0:00:08]} 48. Kg3 {[%clk 0:00:03]}  Rh1 {[%clk 0:00:08]} 49. a4 {[%clk 0:00:03]}  Rde1 {[%clk 0:00:05]} 50. Qc3 {[%clk 0:00:03]}  Rd1 {[%clk 0:00:05]} 51. Qe5 {[%clk 0:00:04]}  Rde1 {[%clk 0:00:05]} 52. Kf3 {[%clk 0:00:04]}  Ref1+ {[%clk 0:00:05]} 53. Rf2 {[%clk 0:00:04]}  Rd1 {[%clk 0:00:06]} 54. Ke2 {[%clk 0:00:04]}  Rhe1+ {[%clk 0:00:05]} 55. Kf3 {[%clk 0:00:04]}  Rh1 {[%clk 0:00:06]} 56. f5 {[%clk 0:00:05]}  exf5 {[%clk 0:00:06]} 57. Kg3 {[%clk 0:00:04]}  Rhg1+ {[%clk 0:00:06]} 58. Rg2 {[%clk 0:00:05]}  Rgf1 {[%clk 0:00:06]} 59. a5 {[%clk 0:00:04]}  bxa5 {[%clk 0:00:06]} 60. Rf2 {[%clk 0:00:05]}  Rxf2 {[%clk 0:00:03]} 61. Kxf2 {[%clk 0:00:05]}  Rd5 {[%clk 0:00:03]} 62. Qa1 {[%clk 0:00:05]}  c4 {[%clk 0:00:03]} 63. Kf3 {[%clk 0:00:06]}  Rc5 {[%clk 0:00:02]} 64. Qd4 {[%clk 0:00:06]}  Rc6 {[%clk 0:00:01]} 65. Ke2 {[%clk 0:00:06]}  c3 {[%clk 0:00:02]} 66. Kd1 {[%clk 0:00:07]}  c2+ {[%clk 0:00:02]} 67. Kc1 {[%clk 0:00:07]} 1-0


[Site "https://www.chess.com"]

[Event "Titled Tuesday Blitz February 21 Early 2023"]
[White "Kravtsiv, Martyn"]
[Black "Bilan, Danila"]
[WhiteFideId "14113147"]
[BlackFideId "24161918"]
[WhiteElo "2598"]
[BlackElo "2303"]
[Result "1-0"]
[Round "04"]
[TimeControl "180+2"]
[Date "2023.02.21"]
[WhiteClock "0:02:20"]
[BlackClock "0:00:42"]

1. e4 {[%clk 0:03:00]}  c6 {[%clk 0:02:57]} 2. Nf3 {[%clk 0:03:00]}  d5 {[%clk 0:02:54]} 3. d3 {[%clk 0:03:00]}  Bg4 {[%clk 0:02:50]} 4. h3 {[%clk 0:03:00]}  Bxf3 {[%clk 0:02:50]} 5. Qxf3 {[%clk 0:02:59]}  e6 {[%clk 0:02:51]} 6. g3 {[%clk 0:02:59]}  Nd7 {[%clk 0:02:47]} 7. Bg2 {[%clk 0:02:59]}  Ngf6 {[%clk 0:02:44]} 8. O-O {[%clk 0:02:59]}  Bc5 {[%clk 0:02:26]} 9. Nc3 {[%clk 0:02:56]}  O-O {[%clk 0:02:21]} 10. Kh2 {[%clk 0:02:55]}  dxe4 {[%clk 0:01:57]} 11. dxe4 {[%clk 0:02:44]}  e5 {[%clk 0:01:47]} 12. Nd1 {[%clk 0:02:37]}  Re8 {[%clk 0:01:40]} 13. Ne3 {[%clk 0:02:36]}  Nf8 {[%clk 0:01:33]} 14. Nf5 {[%clk 0:02:32]}  Ne6 {[%clk 0:01:30]} 15. c3 {[%clk 0:02:29]}  Qc7 {[%clk 0:01:17]} 16. Nxg7 {[%clk 0:02:22]}  Kxg7 {[%clk 0:01:00]} 17. Bh6+ {[%clk 0:02:20]}  Kg6 {[%clk 0:00:46]} 18. Qf5+ {[%clk 0:02:19]}  Kxh6 {[%clk 0:00:42]} 19. Qxf6+ {[%clk 0:02:20]}  Kh5 {[%clk 0:00:42]} 20. g4# {[%clk 0:02:20]} 1-0


[Site "https://www.chess.com"]

[Event "Titled Tuesday Blitz February 21 Early 2023"]
[White "Martynov, Pavel"]
[Black "Rakhmanov, Aleksandr"]
[WhiteFideId "4101260"]
[BlackFideId "4173708"]
[WhiteElo "2414"]
[BlackElo "2632"]
[Result "0-1"]
[Round "04"]
[TimeControl "180+2"]
[Date "2023.02.21"]
[WhiteClock "0:00:01"]
[BlackClock "0:00:23"]

1. e4 {[%clk 0:02:53]}  c5 {[%clk 0:02:59]} 2. Nf3 {[%clk 0:02:52]}  Nf6 {[%clk 0:02:59]} 3. Nc3 {[%clk 0:02:52]}  d5 {[%clk 0:02:59]} 4. exd5 {[%clk 0:02:53]}  Nxd5 {[%clk 0:03:00]} 5. Bb5+ {[%clk 0:02:53]}  Bd7 {[%clk 0:03:00]} 6. Qe2 {[%clk 0:02:54]}  Nb4 {[%clk 0:02:59]} 7. Bxd7+ {[%clk 0:02:40]}  Qxd7 {[%clk 0:03:00]} 8. d3 {[%clk 0:02:39]}  N8c6 {[%clk 0:03:01]} 9. O-O {[%clk 0:02:38]}  Nd4 {[%clk 0:02:59]} 10. Nxd4 {[%clk 0:02:36]}  cxd4 {[%clk 0:02:59]} 11. Ne4 {[%clk 0:02:33]}  e6 {[%clk 0:02:56]} 12. c3 {[%clk 0:02:31]}  dxc3 {[%clk 0:02:55]} 13. bxc3 {[%clk 0:02:22]}  Qxd3 {[%clk 0:02:53]} 14. Qg4 {[%clk 0:02:06]}  h5 {[%clk 0:02:51]} 15. Qf4 {[%clk 0:01:56]}  Nd5 {[%clk 0:02:45]} 16. Nd6+ {[%clk 0:01:51]}  Bxd6 {[%clk 0:02:39]} 17. Qxd6 {[%clk 0:01:50]}  Rd8 {[%clk 0:02:34]} 18. Qc5 {[%clk 0:01:41]}  Qxc3 {[%clk 0:02:23]} 19. Qxa7 {[%clk 0:01:16]}  O-O {[%clk 0:02:02]} 20. Bg5 {[%clk 0:00:43]}  f6 {[%clk 0:01:49]} 21. Rfc1 {[%clk 0:00:38]}  Qd3 {[%clk 0:01:32]} 22. Bh4 {[%clk 0:00:36]}  Rd7 {[%clk 0:01:20]} 23. Bg3 {[%clk 0:00:33]}  Kh7 {[%clk 0:01:12]} 24. Rd1 {[%clk 0:00:30]}  Qg6 {[%clk 0:01:08]} 25. h4 {[%clk 0:00:28]}  Rff7 {[%clk 0:01:06]} 26. Qb8 {[%clk 0:00:23]}  Nc3 {[%clk 0:01:00]} 27. Re1 {[%clk 0:00:21]}  e5 {[%clk 0:00:58]} 28. a4 {[%clk 0:00:20]}  Qd3 {[%clk 0:00:56]} 29. a5 {[%clk 0:00:18]}  Ne2+ {[%clk 0:00:55]} 30. Kh2 {[%clk 0:00:19]}  Nxg3 {[%clk 0:00:54]} 31. fxg3 {[%clk 0:00:20]}  Rd8 {[%clk 0:00:48]} 32. Qa7 {[%clk 0:00:17]}  Rfd7 {[%clk 0:00:46]} 33. Rad1 {[%clk 0:00:13]}  Qa6 {[%clk 0:00:41]} 34. Rxd7 {[%clk 0:00:10]}  Rxd7 {[%clk 0:00:34]} 35. Qc5 {[%clk 0:00:09]}  Rd2 {[%clk 0:00:30]} 36. Rg1 {[%clk 0:00:02]}  Qd3 {[%clk 0:00:23]} 37. Qb4 {[%clk 0:00:01]}  Qd5 {[%clk 0:00:23]} 0-1


[Site "https://www.chess.com"]

[Event "Titled Tuesday Blitz February 21 Early 2023"]
[White "Rustemov, Alexander"]
[Black "Toncheva, Nadya"]
[WhiteFideId "4119002"]
[BlackFideId "2924056"]
[WhiteElo "2525"]
[BlackElo "2295"]
[Result "1-0"]
[Round "04"]
[TimeControl "180+2"]
[Date "2023.02.21"]
[WhiteClock "0:02:28"]
[BlackClock "0:01:14"]

1. d4 {[%clk 0:03:00]}  d5 {[%clk 0:02:59]} 2. c4 {[%clk 0:03:00]}  c6 {[%clk 0:03:00]} 3. Nc3 {[%clk 0:03:00]}  Nf6 {[%clk 0:03:00]} 4. e3 {[%clk 0:03:00]}  e6 {[%clk 0:02:58]} 5. Nf3 {[%clk 0:03:01]}  Nbd7 {[%clk 0:02:58]} 6. Qc2 {[%clk 0:03:01]}  Be7 {[%clk 0:02:56]} 7. Bd3 {[%clk 0:03:00]}  dxc4 {[%clk 0:02:55]} 8. Bxc4 {[%clk 0:03:00]}  b5 {[%clk 0:02:56]} 9. Bd3 {[%clk 0:02:58]}  O-O {[%clk 0:02:55]} 10. e4 {[%clk 0:02:57]}  a6 {[%clk 0:02:50]} 11. e5 {[%clk 0:02:57]}  Nd5 {[%clk 0:02:47]} 12. Nxd5 {[%clk 0:02:54]}  cxd5 {[%clk 0:02:42]} 13. Bxh7+ {[%clk 0:02:54]}  Kh8 {[%clk 0:02:43]} 14. Bd3 {[%clk 0:02:54]}  Nb6 {[%clk 0:02:32]} 15. b3 {[%clk 0:02:51]}  Bd7 {[%clk 0:02:23]} 16. h4 {[%clk 0:02:50]}  a5 {[%clk 0:02:17]} 17. Ng5 {[%clk 0:02:42]}  a4 {[%clk 0:02:04]} 18. Qe2 {[%clk 0:02:37]}  g6 {[%clk 0:01:57]} 19. h5 {[%clk 0:02:37]}  Bxg5 {[%clk 0:01:26]} 20. hxg6+ {[%clk 0:02:36]}  Kg7 {[%clk 0:01:16]} 21. Rh7+ {[%clk 0:02:35]}  Kg8 {[%clk 0:01:14]} 22. Qh5 {[%clk 0:02:28]} 1-0


[Site "https://www.chess.com"]

[Event "Titled Tuesday Blitz February 21 Early 2023"]
[White "Pinheiro, Iung Alicio de O."]
[Black "Samsonkin, Artiom"]
[WhiteFideId "2104350"]
[BlackFideId "13503111"]
[WhiteElo "2306"]
[BlackElo "2420"]
[Result "0-1"]
[Round "04"]
[TimeControl "180+2"]
[Date "2023.02.21"]
[WhiteClock "0:00:03"]
[BlackClock "0:00:10"]

1. e4 {[%clk 0:03:00]}  e6 {[%clk 0:02:58]} 2. d4 {[%clk 0:02:59]}  d5 {[%clk 0:02:59]} 3. e5 {[%clk 0:03:00]}  c5 {[%clk 0:02:59]} 4. c3 {[%clk 0:03:01]}  Nc6 {[%clk 0:03:00]} 5. Nf3 {[%clk 0:03:01]}  Qb6 {[%clk 0:03:00]} 6. Bd3 {[%clk 0:03:02]}  Bd7 {[%clk 0:02:55]} 7. O-O {[%clk 0:03:02]}  Nh6 {[%clk 0:02:50]} 8. Re1 {[%clk 0:02:59]}  Nf5 {[%clk 0:02:48]} 9. Bxf5 {[%clk 0:02:31]}  exf5 {[%clk 0:02:49]} 10. dxc5 {[%clk 0:02:26]}  Bxc5 {[%clk 0:02:50]} 11. Re2 {[%clk 0:02:26]}  a5 {[%clk 0:02:24]} 12. Nbd2 {[%clk 0:02:18]}  a4 {[%clk 0:02:16]} 13. b4 {[%clk 0:02:16]}  Be7 {[%clk 0:02:05]} 14. Nf1 {[%clk 0:02:09]}  Be6 {[%clk 0:01:59]} 15. a3 {[%clk 0:02:07]}  h6 {[%clk 0:01:47]} 16. h4 {[%clk 0:01:57]}  O-O {[%clk 0:01:47]} 17. h5 {[%clk 0:01:56]}  Rfd8 {[%clk 0:01:37]} 18. Be3 {[%clk 0:01:54]}  Qc7 {[%clk 0:01:27]} 19. Rc1 {[%clk 0:01:44]}  b5 {[%clk 0:01:11]} 20. Qd2 {[%clk 0:01:39]}  Rac8 {[%clk 0:01:01]} 21. Ree1 {[%clk 0:01:20]}  Nxe5 {[%clk 0:00:47]} 22. Nxe5 {[%clk 0:01:16]}  Qxe5 {[%clk 0:00:48]} 23. Bb6 {[%clk 0:01:08]}  Qd6 {[%clk 0:00:45]} 24. Bxd8 {[%clk 0:01:08]}  Rxd8 {[%clk 0:00:46]} 25. Ne3 {[%clk 0:01:01]}  f4 {[%clk 0:00:35]} 26. Nc2 {[%clk 0:01:01]}  f3 {[%clk 0:00:35]} 27. Nd4 {[%clk 0:00:57]}  Bg5 {[%clk 0:00:35]} 28. Qd3 {[%clk 0:00:53]}  Bxc1 {[%clk 0:00:35]} 29. Rxc1 {[%clk 0:00:53]}  fxg2 {[%clk 0:00:33]} 30. Nxb5 {[%clk 0:00:48]}  Qf4 {[%clk 0:00:34]} 31. Qe3 {[%clk 0:00:43]}  Qh4 {[%clk 0:00:32]} 32. Kxg2 {[%clk 0:00:43]}  Qxh5 {[%clk 0:00:28]} 33. Nd4 {[%clk 0:00:40]}  Re8 {[%clk 0:00:28]} 34. Rh1 {[%clk 0:00:33]}  Qg6+ {[%clk 0:00:27]} 35. Qg3 {[%clk 0:00:33]}  Qe4+ {[%clk 0:00:27]} 36. f3 {[%clk 0:00:31]}  Qd3 {[%clk 0:00:24]} 37. Qf2 {[%clk 0:00:13]}  Qxc3 {[%clk 0:00:23]} 38. b5 {[%clk 0:00:10]}  Qxa3 {[%clk 0:00:20]} 39. Rb1 {[%clk 0:00:09]}  Qd3 {[%clk 0:00:14]} 40. Ra1 {[%clk 0:00:06]}  Bc8 {[%clk 0:00:14]} 41. Rxa4 {[%clk 0:00:05]}  Qg6+ {[%clk 0:00:14]} 42. Qg3 {[%clk 0:00:03]}  Qd3 {[%clk 0:00:14]} 43. Qf2 {[%clk 0:00:04]}  h5 {[%clk 0:00:14]} 44. Ra7 {[%clk 0:00:03]}  Re5 {[%clk 0:00:09]} 45. Rc7 {[%clk 0:00:02]}  Rg5+ {[%clk 0:00:09]} 46. Kh2 {[%clk 0:00:02]}  Be6 {[%clk 0:00:08]} 47. Nxe6 {[%clk 0:00:03]}  fxe6 {[%clk 0:00:09]} 48. Rc8+ {[%clk 0:00:03]}  Kh7 {[%clk 0:00:09]} 49. Qc2 {[%clk 0:00:04]}  Qxc2+ {[%clk 0:00:07]} 50. Rxc2 {[%clk 0:00:05]}  d4 {[%clk 0:00:08]} 51. Rb2 {[%clk 0:00:04]}  Rc5 {[%clk 0:00:07]} 52. b6 {[%clk 0:00:05]}  Rc8 {[%clk 0:00:07]} 53. b7 {[%clk 0:00:05]}  Rb8 {[%clk 0:00:08]} 54. Kg2 {[%clk 0:00:06]}  Kg6 {[%clk 0:00:09]} 55. Kf2 {[%clk 0:00:06]}  Kf5 {[%clk 0:00:09]} 56. Ke2 {[%clk 0:00:07]}  e5 {[%clk 0:00:10]} 57. Kd3 {[%clk 0:00:08]}  g5 {[%clk 0:00:11]} 58. Rb5 {[%clk 0:00:08]}  Kf4 {[%clk 0:00:11]} 59. Rb6 {[%clk 0:00:08]}  Kxf3 {[%clk 0:00:11]} 60. Rf6+ {[%clk 0:00:08]}  Kg4 {[%clk 0:00:11]} 61. Rf7 {[%clk 0:00:09]}  h4 {[%clk 0:00:11]} 62. Ke4 {[%clk 0:00:10]}  h3 {[%clk 0:00:12]} 63. Kxe5 {[%clk 0:00:10]}  d3 {[%clk 0:00:12]} 64. Rd7 {[%clk 0:00:10]}  h2 {[%clk 0:00:12]} 65. Rd4+ {[%clk 0:00:11]}  Kh5 {[%clk 0:00:11]} 66. Rd7 {[%clk 0:00:12]}  Rh8 {[%clk 0:00:09]} 67. Rh7+ {[%clk 0:00:11]}  Rxh7 {[%clk 0:00:10]} 68. b8=Q {[%clk 0:00:12]}  h1=Q {[%clk 0:00:10]} 69. Qe8+ {[%clk 0:00:12]}  Kh4 {[%clk 0:00:10]} 70. Qa4+ {[%clk 0:00:11]}  g4 {[%clk 0:00:10]} 71. Qf4 {[%clk 0:00:09]}  Qe1+ {[%clk 0:00:10]} 72. Kd4 {[%clk 0:00:08]}  Qb4+ {[%clk 0:00:09]} 73. Ke5 {[%clk 0:00:03]}  Qxf4+ {[%clk 0:00:10]} 74. Kxf4 {[%clk 0:00:03]}  d2 {[%clk 0:00:10]} 0-1


[Site "https://www.chess.com"]